fUSD/lending_fUSD_20260309
["ID","MTS","AMOUNT","RATE_DAILY","PERIOD"]
[408008986,1773019832473,-506.0,0.00014073,2]
[408008987,1773019832482,-9999.99,0.00014073,2]
[408008988,1773019832490,-516.58,0.00014073,2]
[408008989,1773019832499,-608.86,0.00014073,2]
[408008990,1773019832509,-393.0,0.00014138,2]
[408008991,1773019832517,-101747.25415845,0.00014158,2]
[408008992,1773019832526,-979.45,0.0001416,2]
[408008993,1773019832535,-1385.0,0.00014166,2]
[408008994,1773019832544,-164.93938413,0.00014173,2]
[408008995,1773019832553,-501.11845623,0.00014173,2]
[408008996,1773019832562,-500.0,0.00014173,2]
[408008997,1773019832573,-166.66,0.00014242,2]
[408008998,1773019832582,-1394.0,0.00014261,2]
[408008999,1773019832591,-3072.3545939,0.00014335,2]
[408009000,1773019832601,-188.49,0.00014339,2]
[408009001,1773019832610,-166.66,0.00014542,2]
[408009002,1773019832619,-979.45,0.00014543,2]
[408009003,1773019832629,-188.49,0.00014678,2]
[408009004,1773019832638,-1200.0,0.000147,5]
[408009005,1773019832647,-1434.90986853,0.00014718,2]
[408009006,1773019832656,-2400.0,0.000148,5]
[408009007,1773019832665,-166.66,0.00014842,2]
[408009008,1773019832674,-473.4,0.00014853,2]
[408009009,1773019832684,-1331.43842218,0.00014883,2]
[408009010,1773019832693,-171.87038139,0.000149,2]
[408009011,1773019832702,-3600.0,0.000149,5]
[408009012,1773019832711,-167.0,0.00014906,3]
[408009013,1773019832721,-161.0,0.00014906,3]
[408009014,1773019832730,-167.15931961,0.00014943,2]
[408009015,1773019832739,-500.0,0.00014943,2]
[408009016,1773019832748,-500.0,0.00014943,2]
[408009017,1773019832757,-164.74502857,0.00014943,2]
[408009018,1773019832766,-500.0,0.00014943,2]
[408009019,1773019832775,-167.12527101,0.00014943,2]
[408009020,1773019832785,-500.26320598,0.00014943,2]
[408009021,1773019832795,-500.0,0.00014943,2]
[408009022,1773019832803,-502.02619121,0.00014943,2]
[408009023,1773019832813,-500.0,0.00014943,2]
[408009024,1773019832823,-500.0,0.00014943,2]
[408009025,1773019832832,-500.0,0.00014943,2]
[408009026,1773019832842,-240.20525903,0.00014943,2]
[408009027,1773019832851,-14545.69140794,0.00014988,2]
[408009028,1773019832860,-500.0,0.00015,30]
[408009029,1773019832869,-522.40279201,0.00015,30]
[408009030,1773019832879,-500.0,0.00015,30]
[408009031,1773019832888,-500.0,0.00015,30]
[408009032,1773019832897,-500.0,0.00015,30]
[408009033,1773019832906,-500.0,0.00015,30]
[408009034,1773019832916,-500.0,0.00015,30]
[408009035,1773019832925,-500.0,0.00015,30]
[408009036,1773019832934,-500.0,0.00015,30]
[408009037,1773019832944,-500.0,0.00015,30]
[408009038,1773019832953,-500.0,0.00015,30]
[408009039,1773019832963,-500.0,0.00015,30]
[408009040,1773019832972,-500.0,0.00015,30]
[408009041,1773019832982,-500.0,0.00015,30]
[408009042,1773019832991,-500.0,0.00015,30]
[408009043,1773019833002,-500.0,0.00015,30]
[408009044,1773019833011,-500.0,0.00015,30]
[408009045,1773019833021,-500.0,0.00015,30]
[408009046,1773019833035,-500.0,0.00015,30]
[408009047,1773019833045,-500.0,0.00015,30]
[408009048,1773019833054,-500.0,0.00015,30]
[408009049,1773019833063,-500.0,0.00015,30]
[408009050,1773019833075,-998.02835675,0.00015,30]
[408009051,1773019833085,-500.0,0.00015,30]
[408009052,1773019833094,-500.0,0.00015,30]
[408009053,1773019833106,-500.0,0.00015,30]
[408009054,1773019833115,-500.0,0.00015,30]
[408009055,1773019833128,-500.0,0.00015,30]
[408009056,1773019833137,-500.0,0.00015,30]
[408009057,1773019833146,-500.0,0.00015,30]
[408009058,1773019833155,-500.0,0.00015,30]
[408009059,1773019833165,-500.0,0.00015,30]
[408009060,1773019833175,-500.0,0.00015,30]
[408009061,1773019833185,-500.0,0.00015,30]
[408009062,1773019833194,-500.0,0.00015,30]
[408009063,1773019833204,-420.0,0.00015011,2]
[408009064,1773019833214,-188.49,0.00015017,2]
[408009065,1773019833224,-500.0,0.0001502,2]
[408009066,1773019833233,-407.46862187,0.0001502,2]
[408009067,1773019833244,-500.0,0.0001502,2]
[408009068,1773019833254,-500.0,0.0001502,2]
[408009069,1773019833264,-167.17715347,0.0001502,2]
[408009070,1773019833274,-500.0,0.0001502,2]
[408009071,1773019833284,-219.37975877,0.0001502,2]
[408009072,1773019833294,-500.0,0.0001502,2]
[408009073,1773019833304,-500.0,0.0001502,2]
[408009074,1773019833313,-500.0,0.0001502,2]
[408009075,1773019833323,-500.0,0.0001502,2]
[408009076,1773019833332,-500.0,0.0001502,2]
[408009077,1773019833341,-1680.0,0.00015058,2]
[408009078,1773019833351,-6819.28636216,0.00015066,2]
[408009079,1773019833361,-500.0,0.00015068,2]
[408009080,1773019833371,-250.0,0.00015068,2]
[408009081,1773019833380,-600.0,0.00015068,2]
[408009082,1773019833390,-193.96734881,0.00015068,2]
[408009083,1773019833399,-500.0,0.00015068,2]
[408009084,1773019833409,-188.60209756,0.000151,2]
[408009085,1773019833419,-188.60209756,0.0001511,2]
[408009086,1773019833428,-188.60209756,0.0001511,2]
[408009087,1773019833438,-5592.8341,0.0001511,2]
[408009088,1773019833447,-3991.55051219,0.0001511,2]
[408009089,1773019833457,-166.66,0.00015142,2]
[408009090,1773019833467,-5122.50047991,0.00015168,2]
[408009091,1773019833476,-480.24868426,0.00015173,2]
[408009092,1773019833486,-255.0,0.00015198,2]
[408009093,1773019833495,-500.0,0.00015209,2]
[408009094,1773019833504,-573.58002767,0.00015273,2]
[408009095,1773019833513,-500.0,0.00015273,2]
[408009096,1773019833522,-589.03508066,0.00015273,2]
[408009097,1773019833530,-500.0,0.00015273,2]
[408009098,1773019833539,-500.0,0.00015273,2]
[408009099,1773019833548,-500.11732428,0.00015273,2]
[408009100,1773019833557,-500.0,0.00015273,2]
[408009101,1773019833569,-500.0,0.00015273,2]
[408009102,1773019833578,-637.7067289,0.00015273,2]
[408009103,1773019833589,-527.2645069,0.00015273,2]
[408009104,1773019833599,-188.49,0.00015357,2]
[408009105,1773019833608,-166.66,0.00015441,2]
[408009106,1773019833617,-500.0,0.00015491,2]
[408009107,1773019833627,-501.14462458,0.00015491,2]
[408009108,1773019833636,-1000.0,0.00015491,2]
[408009109,1773019833646,-500.38582798,0.00015491,2]
[408009110,1773019833656,-1000.0,0.00015491,2]
[408009111,1773019833666,-500.0,0.00015491,2]
[408009112,1773019833675,-318.03151824,0.00015568,2]
[408009113,1773019833685,-1000.0,0.00015568,2]
[408009114,1773019833695,-1000.0,0.00015568,2]
[408009115,1773019833705,-5122.50047989,0.00015694,2]
[408009116,1773019833715,-188.49,0.00015696,2]
[408009117,1773019833724,-166.66,0.00015741,2]
[408009118,1773019833733,-1000.0,0.00015821,2]
[408009119,1773019833743,-1000.0,0.00015821,2]
[408009120,1773019833752,-1000.0,0.00015821,2]
[408009121,1773019833761,-2000.0,0.0001589,2]
[408009122,1773019833770,-480.24868426,0.00015961,2]
[408009123,1773019833779,-188.49,0.00016035,2]
[408009124,1773019833788,-1504.90829082,0.00016039,2]
[408009125,1773019833798,-502.91011337,0.00016039,2]
[408009126,1773019833807,-1000.6764377,0.00016116,2]
[408009127,1773019833818,-504.61370509,0.00016116,2]
[408009128,1773019833828,-200.0,0.00016181,2]
[408009129,1773019833839,-5122.50047989,0.0001622,2]
[408009130,1773019833848,-161.0,0.00016325,3]
[408009131,1773019833857,-188.49,0.00016374,2]
[408009132,1773019833866,-433.0,0.00016408,2]
[408009133,1773019833876,-193.0,0.00016451,2]
[408009134,1773019833885,-152.9635282,0.0001656,2]
[408009135,1773019833894,-188.49,0.00016713,2]
[408009136,1773019833903,-5122.50047989,0.00016745,2]
[408009137,1773019833912,-480.24868426,0.00016749,2]
[408009138,1773019833922,-501.0,0.00017,2]
[408009139,1773019833931,-188.49,0.00017052,2]
[408009140,1773019833940,-167.0,0.00017271,3]
[408009141,1773019833949,-5122.50047989,0.00017271,2]
[408009142,1773019833958,-188.49,0.00017391,2]
[408009143,1773019833967,-6322.2,0.00017456,2]
[408009144,1773019833976,-835.6729223,0.00017475,2]
[408009145,1773019833985,-480.24868426,0.00017537,2]
[408009146,1773019833994,-166.58,0.00017727,2]
[408009147,1773019834003,-736.0,0.00017731,2]
[408009148,1773019834012,-161.0,0.00017744,3]
[408009149,1773019834022,-5122.50047989,0.00017797,2]
[408009150,1773019834033,-166.66,0.00017926,2]
[408009151,1773019834043,-200.8,0.00018,4]
[408009152,1773019834052,-700.0,0.00018082,7]
[408009153,1773019834061,-2100.0,0.00018082,7]
[408009154,1773019834072,-1500.0,0.00018082,7]
[408009155,1773019834081,-174.9,0.00018145,2]
[408009156,1773019834090,-501.0,0.0001826,3]
[408009157,1773019834101,-256.00869581,0.00018264,2]
[408009158,1773019834110,-5122.50047989,0.00018323,2]
[408009159,1773019834120,-480.24868426,0.00018324,2]
[408009160,1773019834129,-2963.0,0.000184,2]
[408009161,1773019834138,-166.66,0.00018518,2]
[408009162,1773019834147,-152.0,0.00018621,3]
[408009163,1773019834157,-614.42086994,0.0001874,2]
[408009164,1773019834165,-614.42086994,0.0001874,2]
[408009165,1773019834175,-2108.0,0.00018757,2]
[408009166,1773019834185,-2108.0,0.00018767,2]
[408009167,1773019834194,-5122.50047989,0.00018848,2]
[408009168,1773019834203,-426.19500043,0.00018875,2]
[408009169,1773019834212,-168.0,0.00018924,2]
[408009170,1773019834222,-250.0,0.00018957,2]
[408009171,1773019834232,-2000.0,0.00019,2]
[408009172,1773019834241,-613.73590573,0.00019,5]
[408009173,1773019834251,-3033.07147966,0.00019,2]
[408009174,1773019834260,-1500.0,0.00019018,2]
[408009175,1773019834269,-174.9,0.0001902,2]
[408009176,1773019834278,-877.24,0.00019027,2]
[408009177,1773019834287,-2805.0,0.0001904,2]
[408009178,1773019834297,-847.0,0.0001904,2]
[408009179,1773019834306,-2804.0,0.0001904,2]
[408009180,1773019834315,-1502.21515879,0.00019083,2]
[408009181,1773019834326,-241.26843898,0.00019083,2]
[408009182,1773019834335,-744.2,0.00019092,2]
[408009183,1773019834344,-2000.0,0.000191,2]
[408009184,1773019834353,-500.0,0.00019108,2]
[408009185,1773019834363,-500.0,0.00019108,2]
[408009186,1773019834372,-150.0,0.00019108,2]
[408009187,1773019834382,-150.0,0.00019108,2]
[408009188,1773019834391,-500.0,0.00019108,2]
[408009189,1773019834401,-150.0,0.00019108,2]
[408009190,1773019834411,-150.0,0.00019108,2]
[408009191,1773019834420,-500.0,0.00019108,2]
[408009192,1773019834429,-150.0,0.00019108,2]
[408009193,1773019834439,-150.0,0.00019108,2]
[408009194,1773019834447,-150.0,0.00019108,2]
[408009195,1773019834457,-150.0,0.00019108,2]
[408009196,1773019834466,-500.0,0.00019108,2]
[408009197,1773019834475,-500.0,0.00019108,2]
[408009198,1773019834484,-150.0,0.00019108,2]
[408009199,1773019834493,-500.0,0.00019108,2]
[408009200,1773019834503,-166.66,0.0001911,2]
[408009201,1773019834512,-480.24868426,0.00019112,2]
[408009202,1773019834521,-781.25,0.00019136,2]
[408009203,1773019834530,-332.0,0.00019138,2]
[408009204,1773019834539,-161.0,0.00019162,3]
[408009205,1773019834549,-500.0,0.00019163,2]
[408009206,1773019834558,-500.0,0.00019163,2]
[408009207,1773019834567,-150.0,0.00019163,2]
[408009208,1773019834577,-212.18393224,0.00019163,2]
[408009209,1773019834586,-500.0,0.00019163,2]
[408009210,1773019834595,-150.0,0.00019163,2]
[408009211,1773019834604,-500.0,0.00019163,2]
[408009212,1773019834613,-150.0,0.00019163,2]
[408009213,1773019834622,-200.0,0.00019163,2]
[408009214,1773019834631,-500.0,0.00019163,2]
[408009215,1773019834642,-500.0,0.00019163,2]
[408009216,1773019834651,-200.87563366,0.00019163,2]
[408009217,1773019834660,-500.0,0.00019163,2]
[408009218,1773019834669,-744.2,0.00019175,2]
[408009219,1773019834678,-700.0,0.00019178,7]
[408009220,1773019834687,-2100.0,0.00019178,7]
[408009221,1773019834697,-1500.0,0.00019178,7]
[408009222,1773019834706,-160.0,0.00019185,2]
[408009223,1773019834716,-172.82949155,0.00019185,2]
[408009224,1773019834726,-2000.0,0.000192,2]
[408009225,1773019834735,-1541.03721467,0.000192,2]
[408009226,1773019834744,-500.0,0.00019218,2]
[408009227,1773019834754,-500.0,0.00019218,2]
[408009228,1773019834763,-164.52367001,0.00019218,2]
[408009229,1773019834772,-500.0,0.00019218,2]
[408009230,1773019834781,-159.45374442,0.00019218,2]
[408009231,1773019834790,-350.0,0.00019218,2]
[408009232,1773019834799,-150.0,0.00019218,2]
[408009233,1773019834808,-500.0,0.00019218,2]
[408009234,1773019834818,-500.0,0.00019218,2]
[408009235,1773019834827,-209.96492822,0.00019218,2]
[408009236,1773019834836,-500.0,0.00019218,2]
[408009237,1773019834845,-500.0,0.00019218,2]
[408009238,1773019834854,-500.0,0.00019218,2]
[408009239,1773019834863,-744.2,0.00019257,2]
[408009240,1773019834872,-500.0,0.00019272,2]
[408009241,1773019834881,-500.0,0.00019272,2]
[408009242,1773019834890,-500.0,0.00019272,2]
[408009243,1773019834899,-257.23654009,0.00019272,2]
[408009244,1773019834908,-500.0,0.00019272,2]
[408009245,1773019834918,-500.0,0.00019272,2]
[408009246,1773019834927,-500.0,0.00019273,2]
[408009247,1773019834936,-500.0,0.00019273,2]
[408009248,1773019834945,-500.0,0.00019273,2]
[408009249,1773019834954,-2000.0,0.000193,2]
[408009250,1773019834963,-4800.0,0.000193,7]
[408009251,1773019834972,-877.24,0.00019301,2]
[408009252,1773019834982,-891.0,0.00019312,2]
[408009253,1773019834991,-2108.0,0.00019313,2]
[408009254,1773019835000,-500.0,0.00019327,2]
[408009255,1773019835010,-500.0,0.00019327,2]
[408009256,1773019835020,-500.0,0.00019327,2]
[408009257,1773019835034,-438.0,0.00019327,2]
[408009258,1773019835044,-645.06949159,0.00019327,2]
[408009259,1773019835054,-500.0,0.00019328,2]
[408009260,1773019835063,-200.0,0.00019328,2]
[408009261,1773019835076,-500.0,0.00019328,2]
[408009262,1773019835085,-9999.99,0.00019339,2]
[408009263,1773019835094,-744.2,0.0001934,2]
[408009264,1773019835105,-847.0,0.0001936,2]
[408009265,1773019835114,-5122.50047989,0.00019374,2]
[408009266,1773019835331,-500.0,0.00019382,2]
[408009267,1773019835341,-500.0,0.00019382,2]
[408009268,1773019835351,-537.8007681,0.00019382,2]
[408009269,1773019835360,-500.0,0.00019382,2]
[408009270,1773019835370,-512.0,0.00019382,2]
[408009271,1773019835380,-705.0,0.00019399,2]
[408009272,1773019835390,-150.0,0.00019399,2]
[408009273,1773019835399,-150.0,0.00019399,2]
[408009274,1773019835408,-150.0,0.00019399,2]
[408009275,1773019835418,-150.0,0.00019399,2]
[408009276,1773019835427,-150.0,0.00019399,2]
[408009277,1773019835437,-150.0,0.00019399,2]
[408009278,1773019835446,-150.0,0.00019399,2]
[408009279,1773019835455,-183.0,0.00019399,2]
[408009280,1773019835465,-2000.0,0.000194,2]
[408009281,1773019835474,-6000.0,0.000194,7]
[408009282,1773019835483,-2000.0,0.000194,2]
[408009283,1773019835492,-622.0,0.000194,2]
[408009284,1773019835502,-150.0,0.000194,2]
[408009285,1773019835511,-172.0,0.000194,2]
[408009286,1773019835520,-781.25,0.0001941,2]
[408009287,1773019835529,-744.2,0.00019422,2]
[408009288,1773019835538,-531.1610732,0.00019437,2]
[408009289,1773019835547,-500.0,0.00019437,2]
[408009290,1773019835556,-366.90966121,0.00019437,2]
[408009291,1773019835572,-133.09033879,0.00019437,2]
[408009292,1773019835582,-1000.0,0.00019452,2]
[408009293,1773019835592,-350.0,0.00019452,2]
[408009294,1773019835601,-153.33762345,0.00019472,2]
[408009295,1773019835610,-500.0,0.00019492,2]
[408009296,1773019835619,-500.0,0.00019492,2]
[408009297,1773019835629,-1200.0,0.000195,7]
[408009298,1773019835639,-2000.0,0.000195,2]
[408009299,1773019835648,-744.2,0.00019505,2]
[408009300,1773019835657,-374.1097302,0.00019512,2]
[408009301,1773019835666,-501.0,0.0001952,4]
[408009302,1773019835675,-500.0,0.00019546,2]
[408009303,1773019835684,-500.0,0.00019547,2]
[408009304,1773019835693,-4603.109,0.0001955,2]
[408009305,1773019835702,-174.493,0.0001955,2]
[408009306,1773019835711,-877.24,0.00019575,2]
[408009307,1773019835721,-744.2,0.00019587,2]
[408009308,1773019835730,-1903.314477,0.000196,2]
[408009309,1773019835740,-616.64573758,0.000196,2]
[408009310,1773019835749,-902.43671969,0.000196,2]
[408009311,1773019835760,-1200.0,0.000196,7]
[408009312,1773019835769,-2000.0,0.000196,2]
[408009313,1773019835778,-500.0,0.00019601,2]
[408009314,1773019835787,-500.0,0.00019602,2]
[408009315,1773019835796,-891.0,0.0001961,2]
[408009316,1773019835805,-1000.0,0.00019627,2]
[408009317,1773019835814,-1000.0,0.00019627,2]
[408009318,1773019835823,-1000.0,0.00019627,2]
[408009319,1773019835832,-1000.0,0.00019627,2]
[408009320,1773019835841,-1000.0,0.00019627,2]
[408009321,1773019835850,-1000.0,0.00019627,2]
[408009322,1773019835860,-1000.0,0.00019627,2]
[408009323,1773019835870,-1000.0,0.00019627,2]
[408009324,1773019835879,-1000.0,0.00019627,2]
[408009325,1773019835889,-167.0,0.00019635,3]
[408009326,1773019835899,-500.0,0.00019656,2]
[408009327,1773019835909,-500.0,0.00019656,2]
[408009328,1773019835919,-350.0,0.00019668,3]
[408009329,1773019835928,-744.2,0.0001967,2]
[408009330,1773019835937,-330.49,0.00019671,2]
[408009331,1773019835947,-152.0,0.00019673,4]
[408009332,1773019835956,-2805.0,0.0001968,2]
[408009333,1773019835965,-847.0,0.0001968,2]
[408009334,1773019835974,-781.25,0.00019684,2]
[408009335,1773019835984,-1200.0,0.000197,7]
[408009336,1773019835992,-2000.0,0.000197,2]
[408009337,1773019836002,-2000.0,0.000197,2]
[408009338,1773019836011,-166.66,0.00019701,2]
[408009339,1773019836022,-251.16141493,0.00019711,2]
[408009340,1773019836037,-500.0,0.00019711,2]
[408009341,1773019836046,-150.0,0.00019726,2]
[408009342,1773019836056,-150.0,0.00019726,2]
[408009343,1773019836067,-723.69891832,0.00019726,2]
[408009344,1773019836079,-1000.0,0.00019726,2]
[408009345,1773019836089,-276.0,0.00019735,2]
[408009346,1773019836099,-891.0,0.00019736,2]
[408009347,1773019836110,-744.2,0.00019752,2]
[408009348,1773019836123,-350.0,0.00019755,2]
[408009349,1773019836132,-891.0,0.00019755,2]
[408009350,1773019836143,-189.0,0.00019761,2]
[408009351,1773019836152,-413.0,0.00019766,2]
[408009352,1773019836162,-150.0,0.00019781,2]
[408009353,1773019836171,-307.21043497,0.00019781,7]
[408009354,1773019836180,-1200.0,0.000198,7]
[408009355,1773019836190,-220.66738088,0.000198,2]
[408009356,1773019836201,-2000.0,0.000198,2]
[408009357,1773019836211,-2000.0,0.000198,2]
[408009358,1773019836220,-26487.52782641,0.0001981,2]
[408009385,1773019839335,-188.49,0.0001773,2]
[408009386,1773019839344,-188.49,0.0001807,2]
[408009387,1773019839354,-188.49,0.00018409,2]
[408009388,1773019839364,-150.17948311,0.00018748,2]
[408009389,1773019839376,-38.31051689,0.00018748,2]
[408009390,1773019839386,-188.49,0.00019087,2]
[408009391,1773019839395,-188.49,0.00019426,2]
[408009392,1773019839404,-188.49,0.00019765,2]
[408009393,1773019839413,-135629.50488856,0.0001981,2]
[408009394,1773019839422,-368.78,0.0001981,2]
[408009395,1773019839432,-685.0,0.00019819,2]
[408009396,1773019839441,-150.0,0.00019819,2]
[408009397,1773019839451,-150.0,0.00019819,2]
[408009398,1773019839462,-150.0,0.00019819,2]
[408009399,1773019839473,-150.0,0.00019819,2]
[408009400,1773019839483,-222.0,0.00019819,2]
[408009401,1773019839493,-250.0,0.00019828,2]
[408009402,1773019839502,-744.2,0.00019835,2]
[408009403,1773019839511,-891.0,0.00019836,2]
[408009404,1773019839520,-150.0,0.00019836,2]
[408009405,1773019839529,-200.0,0.0001984,2]
[408009406,1773019839538,-458.91,0.00019849,2]
[408009407,1773019839548,-250.0,0.00019861,2]
[408009408,1773019839558,-500.0,0.00019873,2]
[408009409,1773019839568,-500.0,0.00019873,2]
[408009410,1773019839578,-500.0,0.00019873,2]
[408009411,1773019839588,-500.0,0.00019873,2]
[408009412,1773019839597,-494.64624274,0.00019873,2]
[408009413,1773019839606,-152.8085332,0.00019878,2]
[408009414,1773019839615,-150.0,0.0001989,2]
[408009415,1773019839624,-25000.0,0.00019891,3]
[408009416,1773019839634,-5800.0,0.00019892,2]
[408009417,1773019839643,-2000.0,0.000199,2]
[408009418,1773019839653,-2000.0,0.000199,2]
[408009419,1773019839663,-25000.0,0.000199,3]
[408009420,1773019839674,-480.24868426,0.000199,2]
[408009421,1773019839686,-24422.82791355,0.000199,3]
[408009422,1773019839705,-5800.0,0.000199,2]
[408009423,1773019839714,-250.0,0.000199,2]
[408009424,1773019839723,-1500.0,0.000199,7]
[408009425,1773019839732,-5122.50047989,0.000199,2]
[408009426,1773019839741,-220.66738087,0.000199,2]
[408009427,1773019839750,-422.90238932,0.000199,2]
[408009428,1773019839758,-172.82949155,0.000199,3]
[408009429,1773019839767,-5633.51467026,0.000199,2]
[408009430,1773019839775,-4102.0,0.000199,2]
[408009431,1773019839784,-3277.0,0.000199,2]
[408009432,1773019839793,-250.0,0.00019914,2]
[408009433,1773019839802,-744.2,0.00019917,2]
[408009434,1773019839811,-350.0,0.00019927,2]
[408009435,1773019839819,-174.9,0.00019929,2]
[408009436,1773019839830,-150.0,0.00019945,2]
[408009437,1773019839839,-250.0,0.0001995,2]
[408009438,1773019839848,-150.0,0.00019955,2]
[408009439,1773019839857,-781.25,0.00019958,2]
[408009440,1773019839866,-174.9,0.00019965,2]
[408009441,1773019839875,-150.0,0.00019973,2]
[408009442,1773019839884,-188.0,0.00019973,2]
[408009443,1773019839893,-250.0,0.0001998,2]
[408009444,1773019839902,-150.0,0.00019991,2]
[408009445,1773019839911,-4227.232081,0.00019991,7]
[408009446,1773019839920,-28914.7024478,0.00019994,2]
[408009447,1773019839929,-4288.0764287,0.00019994,2]
[408009448,1773019839938,-150.0,0.00019998,2]
[408009449,1773019839947,-1295.19930182,0.00019998,5]
[408009450,1773019839955,-300.0,0.00019999,2]
[408009451,1773019839964,-297.81294815,0.00019999,2]
[408009452,1773019839973,-294.10248427,0.00019999,2]
[408009454,1773019839983,-500.0,0.00019999,2]
[408009456,1773019839991,-500.0,0.00019999,2]
[408009457,1773019840000,-623.45577212,0.00019999,2]
[408009458,1773019840009,-500.0,0.00019999,2]
[408009459,1773019840017,-500.0,0.00019999,2]
[408009460,1773019840029,-500.0,0.00019999,2]
[408009461,1773019840038,-500.0,0.00019999,2]
[408009462,1773019840047,-500.0,0.00019999,2]
[408009463,1773019840055,-500.0,0.00019999,2]
[408009464,1773019840065,-500.0,0.00019999,2]
[408009465,1773019840075,-500.0,0.00019999,2]
[408009466,1773019840084,-500.0,0.00019999,2]
[408009467,1773019840093,-500.0,0.00019999,2]
[408009468,1773019840106,-500.0,0.00019999,2]
[408009469,1773019840115,-500.0,0.00019999,2]
[408009470,1773019840125,-500.0,0.00019999,2]
[408009471,1773019840134,-500.0,0.00019999,2]
[408009472,1773019840143,-500.0,0.00019999,2]
[408009473,1773019840152,-500.0,0.00019999,2]
[408009474,1773019840161,-500.0,0.00019999,2]
[408009475,1773019840170,-500.0,0.00019999,2]
[408009476,1773019840179,-500.0,0.00019999,2]
[408009477,1773019840188,-500.0,0.00019999,2]
[408009478,1773019840197,-500.0,0.00019999,2]
[408009479,1773019840206,-500.0,0.00019999,2]
[408009480,1773019840215,-500.0,0.00019999,2]
[408009481,1773019840224,-296.89321804,0.00019999,2]
[408009482,1773019840233,-500.0,0.00019999,2]
[408009483,1773019840242,-500.0,0.00019999,2]
[408009484,1773019840251,-500.0,0.00019999,2]
[408009485,1773019840261,-500.0,0.00019999,2]
[408009486,1773019840271,-500.0,0.00019999,2]
[408009487,1773019840280,-500.0,0.00019999,2]
[408009488,1773019840289,-500.0,0.00019999,2]
[408009489,1773019840298,-500.0,0.00019999,2]
[408009490,1773019840308,-500.0,0.00019999,2]
[408009491,1773019840317,-500.0,0.00019999,2]
[408009492,1773019840327,-500.0,0.00019999,2]
[408009493,1773019840336,-500.0,0.00019999,2]
[408009494,1773019840346,-500.0,0.00019999,2]
[408009495,1773019840355,-500.0,0.00019999,2]
[408009496,1773019840364,-500.0,0.00019999,2]
[408009497,1773019840373,-500.0,0.00019999,2]
[408009498,1773019840382,-500.0,0.00019999,2]
[408009499,1773019840392,-500.0,0.00019999,2]
[408009500,1773019840401,-500.0,0.00019999,2]
[408009501,1773019840410,-500.0,0.00019999,2]
[408009502,1773019840419,-500.0,0.00019999,2]
[408009503,1773019840428,-500.0,0.00019999,2]
[408009504,1773019840437,-500.0,0.00019999,2]
[408009505,1773019840446,-500.0,0.00019999,2]
[408009506,1773019840455,-500.0,0.00019999,2]
[408009507,1773019840465,-500.0,0.00019999,2]
[408009508,1773019840474,-500.0,0.00019999,2]
[408009509,1773019840484,-500.0,0.00019999,2]
[408009510,1773019840493,-500.0,0.00019999,2]
[408009511,1773019840503,-500.0,0.00019999,2]
[408009512,1773019840512,-500.0,0.00019999,2]
[408009513,1773019840520,-500.0,0.00019999,2]